fUSD/lending_fUSD_20240630
["ID","MTS","AMOUNT","RATE_DAILY","PERIOD"]
[330717367,1719733842081,-500.0,0.00013999,2]
[330717368,1719733842092,-500.0,0.00013999,2]
[330717369,1719733842101,-500.0,0.00013999,2]
[330717370,1719733842111,-198.4152671,0.00013999,2]
[330717371,1719733842122,-502.84146663,0.00013999,3]
[330717372,1719733842131,-11069.55,0.00013999,3]
[330717373,1719733842143,-500.0,0.00013999,3]
[330717374,1719733842152,-506.85234204,0.00013999,3]
[330717375,1719733842162,-500.0,0.00013999,3]
[330717376,1719733842171,-501.38449191,0.00013999,3]
[330717377,1719733842181,-500.0,0.00013999,3]
[330717379,1719733842190,-500.0,0.00013999,3]
[330717380,1719733842200,-500.0,0.00013999,3]
[330717381,1719733842209,-501.34426724,0.00013999,3]
[330717382,1719733842219,-500.0,0.00013999,3]
[330717383,1719733842229,-500.0,0.00013999,3]
[330717384,1719733842238,-503.64391603,0.00013999,3]
[330717385,1719733842248,-501.78197699,0.00013999,3]
[330717386,1719733842259,-500.0,0.00013999,3]
[330717387,1719733842269,-308.11434087,0.00013999,3]
[330717388,1719733842278,-500.0,0.00013999,3]
[330717389,1719733842288,-500.0,0.00013999,3]
[330717390,1719733842299,-500.0,0.00013999,3]
[330717391,1719733842309,-1000.0,0.00013999,3]
[330717392,1719733842319,-500.0,0.00013999,3]
[330717394,1719733842330,-502.27674364,0.00013999,3]
[330717395,1719733842340,-500.0,0.00013999,3]
[330717398,1719733842350,-504.26863321,0.00013999,3]
[330717399,1719733842360,-336.07414989,0.00013999,3]
[330717400,1719733842370,-502.26423637,0.00013999,3]
[330717401,1719733842380,-500.0,0.00013999,3]
[330717402,1719733842390,-500.0,0.00013999,3]
[330717403,1719733842400,-500.0,0.00013999,3]
[330717404,1719733842411,-500.0,0.00013999,3]
[330717405,1719733842423,-500.0,0.00013999,3]
[330717406,1719733842434,-500.0,0.00013999,3]
[330717407,1719733842448,-500.0,0.00013999,3]
[330717408,1719733842459,-2479.94,0.00013999,2]
[330717409,1719733842468,-2479.94,0.00013999,2]
[330717410,1719733842478,-2479.94,0.00013999,2]
[330717411,1719733842489,-2479.94,0.00013999,2]
[330717412,1719733842498,-501.47457659,0.00013999,3]
[330717413,1719733842509,-2479.94,0.00013999,2]
[330717414,1719733842522,-2479.94,0.00013999,2]
[330717415,1719733842532,-2479.94,0.00013999,2]
[330717416,1719733842541,-2479.94,0.00013999,2]
[330717417,1719733842551,-500.0,0.00013999,3]
[330717418,1719733842562,-2479.94,0.00013999,2]
[330717419,1719733842571,-2479.94,0.00013999,2]
[330717420,1719733842581,-2479.94,0.00013999,2]
[330717421,1719733842591,-2479.94,0.00013999,2]
[330717422,1719733842602,-2479.94,0.00013999,2]
[330717423,1719733842613,-500.0,0.00013999,3]
[330717424,1719733842623,-2479.94,0.00013999,2]
[330717425,1719733842633,-2479.94,0.00013999,2]
[330717426,1719733842643,-2479.94,0.00013999,2]
[330717427,1719733842652,-2479.94,0.00013999,2]
[330717428,1719733842668,-2479.94,0.00013999,2]
[330717429,1719733842678,-2479.94,0.00013999,2]
[330717430,1719733842687,-2479.94,0.00013999,2]
[330717431,1719733842697,-2479.94,0.00013999,2]
[330717432,1719733842706,-2479.94,0.00013999,2]
[330717433,1719733842716,-502.88839252,0.00013999,3]
[330717434,1719733842725,-2479.94,0.00013999,2]
[330717435,1719733842735,-2480.01986752,0.00013999,2]
[330717436,1719733842745,-515.70577033,0.00013999,3]
[330717437,1719733842754,-291.47670026,0.00013999,3]
[330717438,1719733842764,-500.0,0.00013999,3]
[330717439,1719733842774,-547.36,0.00013999,3]
[330717440,1719733842783,-500.0,0.00013999,3]
[330717441,1719733842794,-500.61832789,0.00013999,3]
[330717442,1719733842805,-502.39681013,0.00013999,3]
[330717443,1719733842814,-500.0,0.00013999,3]
[330717444,1719733842824,-500.0,0.00013999,3]
[330717445,1719733842834,-800561.2479965,0.00014,2]
[330717446,1719733843284,-4070.16904226,0.00014,2]
[330717447,1719733843312,-902.63081299,0.00014,2]
[330717448,1719733843339,-7592.06373416,0.00014,2]
[330717449,1719733843362,-528.24343476,0.00014,2]
[330717450,1719733843591,-388.78880618,0.000139,2]
[330717451,1719733843602,-302.61376467,0.000139,2]
[330717452,1719733843614,-530.86535505,0.000139,2]
[330717453,1719733843626,-6440.31778022,0.000139,2]
[330717454,1719733843639,-27146.47734709,0.000139,2]
[330717455,1719733843649,-165357.86997375,0.00014,2]
[330717456,1719733843661,-50851.26975652,0.00014,2]
[330717457,1719733843672,-362.35711128,0.00014,2]
[330717458,1719733843684,-4130.24694756,0.00014,2]
[330717459,1719733843701,-659.94979241,0.00014,2]
[330717460,1719733843712,-922.8938064,0.00014,2]
[330717461,1719733843723,-363.6,0.00014,2]
[330717462,1719733843735,-7347.55812948,0.00014,2]
[330717463,1719733843748,-62484.29335375,0.00014,2]
[330717464,1719733843764,-4758.8714046,0.00014,2]
[330717465,1719733843774,-195487.85786876,0.00014,2]
[330717466,1719733843785,-7515.64140096,0.00014,2]
[330717467,1719733843797,-4406.46887546,0.00014,2]
[330717468,1719733843808,-1035.81827002,0.00014,2]
[330717469,1719733843820,-1050.51565051,0.00014,2]
[330717470,1719733843833,-453.8784,0.00014,2]
[330717471,1719733843844,-1104.73700519,0.00014,2]
[330717472,1719733843856,-1583.2356119,0.00014,2]
[330717473,1719733843880,-1779.57112728,0.00014,2]
[330717474,1719733843892,-1107.05229675,0.00014,2]
[330717475,1719733843904,-1819.99999776,0.00014,2]
[330717476,1719733844172,-600.64996105,0.00013326,2]
[330717477,1719733844186,-399.35003895,0.00013326,2]
[330717478,1719733844196,-477.24349224,0.00013999,3]
[330717479,1719733844205,-3176.96251104,0.00014,2]
[330717480,1719733844217,-5087.95758776,0.00014,2]
[330717481,1719733844228,-307.74597549,0.00014,2]
[330717482,1719733844239,-1007.06053773,0.00014,2]
[330717483,1719733844261,-372.51975567,0.00014,2]
[330717484,1719733844273,-450.180002,0.00014,2]
[330717485,1719733844285,-281.326473,0.00014,2]
[330717486,1719733844297,-514.03878205,0.00014,2]
[330717487,1719733844308,-1234.99446492,0.00014,2]
[330717488,1719733844319,-2024.70883793,0.00014,2]
[330717489,1719733844331,-57705.81068856,0.00014,2]
[330717490,1719733844343,-10475.19883426,0.00014,2]
[330717491,1719733844355,-9845.86782378,0.00014,2]
[330717492,1719733844367,-691.7214758,0.00014,2]
[330717493,1719733844379,-400.36535376,0.00014,2]
[330717494,1719733844391,-446.51173508,0.00014,2]
[330717495,1719733844402,-382.688077,0.00014,2]
[330717496,1719733844417,-590.6363332,0.00014,2]
[330717497,1719733844431,-3351.05102859,0.00014,2]
[330717498,1719733844443,-17721.86150916,0.00014,2]
[330717499,1719733844455,-16736.653565,0.00014,2]
[330717500,1719733844467,-1468.79524653,0.00014,2]
[330717501,1719733844478,-6602.93247792,0.00014,2]
[330717502,1719733844494,-5060.49712032,0.00014,2]
[330717503,1719733844506,-615.28590621,0.00014,2]
[330717504,1719733844523,-460.32635449,0.00014,2]
[330717505,1719733844535,-34033.74776345,0.00014,2]
[330717506,1719733844552,-3983.56760512,0.00014,2]
[330717507,1719733844564,-281.326473,0.00014,2]
[330717508,1719733845687,-379.65472405,0.00014,2]
[330717509,1719733845755,-98802.12649784,0.00014,2]
[330717510,1719733845824,-624.58643076,0.00014,2]
[330717512,1719733988640,-2164.33599313,0.000138,2]
[330717514,1719734006704,55.68400687,0.00013584,2]
[330717515,1719734006727,198.31599313,0.00013584,2]
[330717516,1719734014504,1595.97732911,0.000138,2]
[330717517,1719734023661,425.72667776,0.00013888,3]
[330717518,1719734023685,159.90332224,0.00013888,3]
[330717519,1719734035766,1000.0,0.00013798,2]
[330717520,1719734039902,741.84513559,0.00013888,2]
[330717522,1719734073695,161.6,0.00013699,2]
[330717523,1719734096560,156.67154217,0.00013231,2]
[330717524,1719734096588,93.32845783,0.00013231,2]
[330717525,1719734114066,174.73,0.00013699,2]
[330717526,1719734138436,193.2637923,0.000138,2]
[330717527,1719734181763,438.81,0.00011262,2]
[330717528,1719734181964,438.81,0.00013526,2]
[330717529,1719734231784,881.07774987,0.00013849,2]
[330717530,1719734231807,383.24420761,0.00013849,2]
[330717531,1719734279282,250.0,0.00013141,2]
[330717532,1719734285480,1586.77579239,0.00013798,2]
[330717533,1719734431612,150.0,0.00025289,120]
[330717538,1719734691296,394.92,0.00011007,2]
[330717539,1719734711566,9238.1893607,0.00011097,2]
[330717540,1719734732162,150.0,0.00024361,120]
[330717542,1719734902736,4481.3621,0.00011098,2]
[330717543,1719734941492,300.28666289,0.00011098,2]
[330717544,1719734957740,4877.15153668,0.00011098,2]
[330717545,1719734966102,-300.0,0.00011198,2]
[330717546,1719734966125,-2537.3236,0.00011199,2]
[330717548,1719735002527,150.0,0.00011098,2]
[330717549,1719735002715,150.0,0.00011098,2]
[330717550,1719735003153,297.17406985,0.00011098,2]
[330717558,1719735015405,-300.0,0.00011198,2]
[330717559,1719735015427,-19700.0,0.00011199,2]
[330717560,1719735016472,-2458.49302037,0.00011199,2]
[330717561,1719735016494,-992.64529872,0.00012203,2]
[330717562,1719735016515,-420.0,0.00012303,2]
[330717563,1719735016536,-150.0,0.000126,2]
[330717564,1719735016560,-800.0,0.00012739,2]
[330717565,1719735016582,-735.56299996,0.00012807,2]
[330717566,1719735016605,-250.0,0.00012851,2]
[330717567,1719735016628,-14193.29868095,0.00012962,2]
[330717568,1719735017171,-9706.70131905,0.00012962,2]
[330717574,1719735031874,-150.0,0.00013067,2]
[330717576,1719735031884,-200.0,0.00013092,2]
[330717577,1719735031894,-499.99,0.00013092,2]
[330717578,1719735031903,-11625.03727996,0.00013092,2]
[330717579,1719735031918,-716.94823774,0.00013092,2]
[330717580,1719735031991,-277.94262863,0.00013092,2]
[330717581,1719735032052,-367.67329241,0.00013092,2]
[330717582,1719735032228,-2858.1040834,0.00013092,2]
[330717583,1719735032240,-453.51,0.00013092,2]
[330717584,1719735032252,-13715.39447786,0.00013092,2]
[330717585,1719735032262,-394.92,0.00013271,2]
[330717586,1719735032271,-400.0,0.000134,4]
[330717587,1719735032281,-469.37193157,0.00013452,2]
[330717588,1719735032290,-469.37193157,0.00013452,2]
[330717589,1719735032299,-800.0,0.000135,4]
[330717590,1719735032308,-587.0,0.00013517,2]
[330717591,1719735032317,-150.0,0.00013533,2]
[330717592,1719735032327,-204.58,0.00013568,2]
[330717593,1719735032337,-1200.0,0.000136,4]
[330717594,1719735032347,-320.52,0.00013699,2]
[330717595,1719735032356,-735.56299996,0.00013699,2]
[330717596,1719735032365,-1396.48016298,0.00013699,2]
[330717597,1719735032374,-1600.0,0.000137,5]
[330717598,1719735032384,-21528.88741308,0.0001379,2]
[330717599,1719735032393,-39002.17,0.00013797,3]
[330717600,1719735032402,-13418.74,0.00013797,3]
[330717601,1719735032413,-5295.8,0.00013797,3]
[330717602,1719735032422,-500.0,0.00013797,3]
[330717603,1719735032432,-4801.03,0.00013797,3]
[330717604,1719735032441,-319.10398719,0.00013797,2]
[330717605,1719735032451,-501.63992062,0.00013797,3]
[330717606,1719735032460,-500.0,0.00013797,3]
[330717607,1719735032470,-500.0,0.00013797,3]
[330717608,1719735032480,-500.0,0.00013797,3]
[330717609,1719735032489,-500.0,0.00013797,3]
[330717610,1719735032499,-500.0,0.00013797,3]
[330717611,1719735032508,-500.0,0.00013797,3]
[330717612,1719735032517,-500.0,0.00013797,3]
[330717613,1719735032526,-500.0,0.00013797,3]
[330717614,1719735032535,-500.0,0.00013797,3]
[330717615,1719735032546,-500.0,0.00013797,3]
[330717616,1719735032556,-500.0,0.00013797,3]
[330717617,1719735032569,-500.0,0.00013797,3]
[330717618,1719735032579,-500.0,0.00013797,3]
[330717619,1719735032588,-8386.89,0.00013797,3]
[330717620,1719735032599,-500.0,0.00013797,3]
[330717621,1719735032608,-502.4488804,0.00013797,3]
[330717622,1719735032618,-500.0,0.00013797,3]
[330717623,1719735032628,-201992.16944469,0.00013798,2]
[330717633,1719735037598,-500.0,0.00013797,3]
[330717634,1719735037609,-32.55705177,0.00013797,3]
[330717635,1719735037658,-467.44294823,0.00013797,3]
[330717636,1719735037671,-500.0,0.00013797,3]
[330717637,1719735037681,-46807.49425916,0.00013798,2]
[330717638,1719735037776,-3090.6189,0.00013798,2]
[330717640,1719735039713,-1217.89072931,0.00013798,2]
[330717642,1719735039839,-2078.47176684,0.00013798,2]
[330717643,1719735039850,-1145.49596646,0.000138,5]
[330717644,1719735039865,-854.50403354,0.000138,5]
[330717645,1719735039875,-1359.13066915,0.00013807,2]
[330717646,1719735040359,-1362.9189826,0.00013807,2]
[330717647,1719735040369,-1490.43083,0.0001386,2]
[330717648,1719735040378,-1212.06143756,0.0001386,2]
[330717649,1719735040391,-278.36939244,0.0001386,2]
[330717650,1719735040400,-206.86348606,0.0001386,2]
[330717651,1719735040412,-674.77624646,0.0001386,2]
[330717656,1719735042664,-500.0,0.00013797,3]
[330717659,1719735042674,-114.95207445,0.00013797,3]
[330717661,1719735042727,-385.04792555,0.00013797,3]
[330717662,1719735042737,-608.79110748,0.0001386,2]
[330717663,1719735042747,-272.20686285,0.0001386,2]
[330717669,1719735045775,-25.00248715,0.0001386,2]
[330717670,1719735045785,-220.02,0.0001389,2]
[330717671,1719735045795,-615.91,0.00013897,3]
[330717672,1719735045805,-463.56,0.00013897,3]
[330717673,1719735045815,-378.57399438,0.00013897,3]
[330717674,1719735045826,-571.57725809,0.00013897,3]
[330717675,1719735045836,-578.40953738,0.00013897,3]
[330717676,1719735045846,-500.0,0.00013897,3]
[330717677,1719735045860,-293.14228967,0.00013897,3]
[330717678,1719735045870,-500.0,0.00013897,3]
[330717679,1719735045880,-500.0,0.00013897,3]
[330717680,1719735045892,-500.0,0.00013897,3]
[330717681,1719735045904,-500.0,0.00013897,3]
[330717682,1719735045915,-500.0,0.00013897,3]
[330717683,1719735045925,-500.0,0.00013897,3]
[330717684,1719735045935,-500.0,0.00013897,3]
[330717685,1719735045945,-500.0,0.00013897,3]
[330717686,1719735045955,-281.33158781,0.00013897,3]
[330717687,1719735045966,-345.63682136,0.00013897,3]
[330717688,1719735045976,-500.0,0.00013897,3]
[330717689,1719735045986,-355.02645009,0.00013897,3]
[330717690,1719735045996,-500.0,0.00013897,3]
[330717691,1719735046006,-466.48185307,0.00013897,3]
[330717692,1719735046016,-500.0,0.00013897,3]
[330717693,1719735046026,-165.05595983,0.00013897,3]
[330717694,1719735046036,-500.0,0.00013897,3]
[330717695,1719735046046,-500.0,0.00013897,3]
[330717696,1719735046056,-500.0,0.00013897,3]
[330717697,1719735046067,-500.0,0.00013897,3]
[330717699,1719735046078,-500.0,0.00013897,3]
[330717700,1719735046090,-500.0,0.00013897,3]
[330717701,1719735046101,-230.9822518,0.00013897,3]
[330717702,1719735046112,-355.90008518,0.00013897,3]
[330717703,1719735046122,-331.75584002,0.00013897,3]
[330717704,1719735046133,-314.03623698,0.00013897,3]
[330717705,1719735046146,-555.41043711,0.00013897,3]
[330717706,1719735046156,-254.32425621,0.00013897,3]
[330717707,1719735046167,-247.73336402,0.00013897,3]
[330717708,1719735046177,-500.0,0.00013897,3]
[330717709,1719735046187,-500.0,0.00013897,3]
[330717710,1719735046197,-375.59170334,0.00013897,3]
[330717711,1719735046207,-500.0,0.00013897,3]
[330717712,1719735046217,-500.0,0.00013897,3]
[330717713,1719735046227,-500.0,0.00013897,3]
[330717714,1719735046237,-432.7661357,0.00013897,3]
[330717715,1719735046247,-500.0,0.00013897,3]
[330717716,1719735046257,-500.0,0.00013897,3]
[330717717,1719735046267,-500.0,0.00013897,3]
[330717718,1719735046278,-500.0,0.00013897,3]
[330717719,1719735046288,-500.0,0.00013897,3]
[330717720,1719735046298,-500.0,0.00013897,3]
[330717721,1719735046308,-461.84541952,0.00013897,3]
[330717722,1719735046318,-321.06967244,0.00013897,3]
[330717723,1719735046328,-500.0,0.00013897,3]
[330717724,1719735046338,-500.0,0.00013897,3]
[330717725,1719735046348,-416.34071469,0.00013897,3]
[330717726,1719735046358,-500.0,0.00013897,3]
[330717727,1719735046368,-500.0,0.00013897,3]
[330717728,1719735046378,-500.0,0.00013897,3]
[330717729,1719735046388,-500.0,0.00013897,3]
[330717730,1719735046399,-500.0,0.00013897,3]
[330717731,1719735046410,-378.35,0.00013897,3]
[330717732,1719735046421,-266.93541986,0.00013897,3]
[330717733,1719735046431,-500.0,0.00013897,3]
[330717734,1719735046441,-500.0,0.00013897,3]
[330717735,1719735046450,-500.0,0.00013897,3]
[330717736,1719735046460,-500.0,0.00013897,3]
[330717737,1719735046470,-500.0,0.00013897,3]
[330717738,1719735046481,-500.0,0.00013897,3]
[330717739,1719735046492,-604.15,0.00013897,3]
[330717740,1719735046503,-500.0,0.00013897,3]
[330717741,1719735046513,-356.44926811,0.00013897,3]
[330717742,1719735046525,-333.24,0.00013897,3]
[330717743,1719735046536,-500.0,0.00013897,3]
[330717744,1719735046547,-228.09,0.00013897,3]
[330717745,1719735046557,-504.11288001,0.00013897,3]
[330717746,1719735046569,-500.0,0.00013897,3]
[330717747,1719735046579,-581.21,0.00013897,3]
[330717748,1719735046588,-500.0,0.00013897,3]
[330717749,1719735046598,-500.0,0.00013897,3]
[330717750,1719735046609,-500.0,0.00013897,3]
[330717751,1719735046618,-347.19322976,0.00013897,3]
[330717752,1719735046628,-503.34369788,0.00013897,3]
[330717753,1719735046638,-500.0,0.00013897,3]
[330717754,1719735046647,-243.14,0.00013897,3]
[330717755,1719735046657,-396.77696702,0.00013897,3]
[330717756,1719735046666,-500.0,0.00013897,3]
[330717757,1719735046676,-158.73918451,0.00013897,3]
[330717758,1719735046686,-174.95455155,0.00013897,2]
[330717759,1719735046696,-413.24,0.00013897,3]
[330717760,1719735046706,-500.0,0.00013897,3]
[330717761,1719735046715,-500.0,0.00013897,3]
[330717762,1719735046725,-321.35803843,0.00013897,3]
[330717763,1719735046735,-562.03,0.00013897,3]
[330717764,1719735046744,-386.43,0.00013897,3]
[330717765,1719735046754,-500.0,0.00013897,3]
[330717766,1719735046764,-500.0,0.00013897,3]
[330717767,1719735046774,-500.0,0.00013897,3]
[330717768,1719735046784,-206.22,0.00013897,3]
[330717769,1719735046793,-504.28124414,0.00013897,3]
[330717770,1719735046803,-500.0,0.00013897,3]
[330717771,1719735046812,-500.0,0.00013897,3]
[330717772,1719735046822,-500.0,0.00013897,3]
[330717773,1719735046833,-326.73,0.00013897,3]
[330717774,1719735046842,-500.0,0.00013897,3]
[330717775,1719735046855,-500.0,0.00013897,3]
[330717776,1719735046870,-500.0,0.00013897,3]
[330717777,1719735046879,-500.0,0.00013897,3]
[330717778,1719735046890,-500.0,0.00013897,3]
[330717779,1719735046900,-169.83,0.00013897,3]
[330717780,1719735047284,-500.0,0.00013897,3]
[330717781,1719735047303,-500.0,0.00013897,3]
[330717782,1719735047318,-500.0,0.00013897,3]
[330717783,1719735047326,-320.15,0.00013897,3]
[330717784,1719735047336,-500.0,0.00013897,3]
[330717785,1719735047344,-198.88,0.00013897,3]
[330717786,1719735047353,-503.19046383,0.00013897,3]
[330717787,1719735047362,-548.18662489,0.00013897,3]
[330717788,1719735047371,-500.0,0.00013897,3]
[330717789,1719735047380,-303.65629632,0.00013897,3]
[330717790,1719735047389,-500.0,0.00013897,3]
[330717791,1719735047399,-500.0,0.00013897,3]
[330717792,1719735047409,-513.89,0.00013897,3]
[330717793,1719735047418,-500.0,0.00013897,3]
[330717794,1719735047430,-500.0,0.00013897,3]
[330717795,1719735047439,-500.0,0.00013897,3]
[330717796,1719735047449,-500.0,0.00013897,3]
[330717797,1719735047458,-502.58538254,0.00013897,3]
[330717798,1719735047468,-500.0,0.00013897,3]
[330717799,1719735047478,-561.6,0.00013897,3]
[330717800,1719735047487,-500.0,0.00013897,3]
[330717801,1719735047496,-500.0,0.00013897,3]
[330717802,1719735047505,-500.0,0.00013897,3]
[330717803,1719735047515,-500.0,0.00013897,3]
[330717804,1719735047524,-500.0,0.00013897,3]
[330717805,1719735047533,-500.0,0.00013897,3]
[330717806,1719735047542,-500.0,0.00013897,3]
[330717807,1719735047552,-500.0,0.00013897,3]
[330717808,1719735047561,-578.18894049,0.00013897,3]
[330717809,1719735047572,-500.0,0.00013897,3]
[330717810,1719735047581,-349.01603765,0.00013897,3]
[330717811,1719735047591,-500.0,0.00013897,3]
[330717812,1719735047602,-501.95780694,0.00013897,3]
[330717813,1719735047612,-500.0,0.00013897,3]
[330717814,1719735047622,-500.0,0.00013897,3]
[330717815,1719735047631,-541.34827955,0.00013897,3]
[330717816,1719735047641,-500.0,0.00013897,3]
[330717817,1719735047650,-500.0,0.00013897,3]
[330717818,1719735047661,-502.55087138,0.00013897,3]
[330717819,1719735047670,-500.0,0.00013897,3]
[330717820,1719735047680,-500.0,0.00013897,3]
[330717821,1719735047690,-500.0,0.00013897,3]
[330717822,1719735047699,-500.0,0.00013897,3]
[330717823,1719735047709,-500.0,0.00013897,3]
[330717824,1719735047719,-504.16327393,0.00013897,3]
[330717825,1719735047729,-500.0,0.00013897,3]
[330717826,1719735047739,-535.02053592,0.00013897,3]
[330717827,1719735047748,-500.0,0.00013897,3]
[330717828,1719735047758,-503.13740249,0.00013897,3]
[330717829,1719735047767,-500.0,0.00013897,3]
[330717830,1719735047776,-500.0,0.00013897,3]
[330717831,1719735047785,-500.0,0.00013897,3]
[330717832,1719735047796,-498.87139579,0.00013897,3]
[330717833,1719735047805,-504.88609428,0.00013897,3]
[330717834,1719735047816,-500.0,0.00013897,3]
[330717835,1719735047826,-500.0,0.00013897,3]
[330717836,1719735047837,-204.96153322,0.00013897,3]
[330717837,1719735047847,-500.0,0.00013897,3]
[330717838,1719735047862,-500.0,0.00013897,3]
[330717839,1719735047873,-500.0,0.00013897,3]
[330717840,1719735047882,-500.0,0.00013897,3]
[330717841,1719735047891,-464.95,0.00013897,3]
[330717842,1719735047900,-500.0,0.00013897,3]
[330717843,1719735047909,-500.0,0.00013897,3]
[330717844,1719735047918,-500.0,0.00013897,3]
[330717845,1719735047930,-500.0,0.00013897,3]
[330717846,1719735047939,-500.0,0.00013897,3]
[330717847,1719735047949,-23056.87,0.00013897,3]
[330717848,1719735047958,-500.0,0.00013897,3]
[330717849,1719735047969,-500.0,0.00013897,3]
[330717850,1719735047979,-500.0,0.00013897,3]
[330717851,1719735047988,-500.73289735,0.00013897,3]
[330717852,1719735047998,-500.0,0.00013897,3]
[330717853,1719735048007,-641.01579373,0.00013897,3]
[330717854,1719735048017,-501.77296353,0.00013897,3]
[330717855,1719735048027,-559.71,0.00013897,3]
[330717856,1719735048037,-500.0,0.00013897,3]
[330717857,1719735048046,-501.36284253,0.00013897,3]
[330717858,1719735048056,-500.0,0.00013897,3]
[330717859,1719735048067,-503.44139187,0.00013897,3]
[330717860,1719735048076,-500.0,0.00013897,3]
[330717861,1719735048086,-503.95037472,0.00013897,3]
[330717862,1719735048096,-500.0,0.00013897,3]
[330717863,1719735048106,-501.50667294,0.00013897,3]
[330717864,1719735048116,-503.97096015,0.00013897,3]
[330717865,1719735048125,-503.21918503,0.00013897,3]
[330717866,1719735048135,-503.78986348,0.00013897,3]
[330717867,1719735048144,-500.0,0.00013897,3]
[330717868,1719735048153,-500.0,0.00013897,3]
[330717869,1719735048162,-503.85212953,0.00013897,3]
[330717870,1719735048172,-503.15781934,0.00013897,3]
[330717871,1719735048181,-502.38571923,0.00013897,3]
[330717872,1719735048190,-501.69473864,0.00013897,3]
[330717873,1719735048199,-503.73845336,0.00013897,3]
[330717874,1719735048210,-503.2995404,0.00013897,3]
[330717875,1719735048220,-216.22294586,0.00013897,3]
[330717876,1719735048231,-500.0,0.00013897,3]
[330717877,1719735048241,-527.61949228,0.00013897,3]
[330717878,1719735048251,-500.0,0.00013897,3]
[330717879,1719735048261,-500.0,0.00013897,3]
[330717880,1719735048271,-500.0,0.00013897,3]
[330717881,1719735048280,-500.96475879,0.00013897,3]
[330717882,1719735048289,-502.84010063,0.00013897,3]
[330717883,1719735048298,-500.0,0.00013897,3]
[330717884,1719735048307,-504.43516182,0.00013897,3]
[330717885,1719735048315,-637.08510861,0.00013897,3]
[330717886,1719735048324,-500.0,0.00013897,3]
[330717887,1719735048333,-622.88,0.00013897,3]
[330717888,1719735048341,-500.0,0.00013897,3]
[330717889,1719735048351,-500.0,0.00013897,3]
[330717890,1719735048360,-504.08879722,0.00013897,3]
[330717891,1719735048369,-500.0,0.00013897,3]
[330717892,1719735048378,-500.0,0.00013897,3]
[330717893,1719735048387,-643.26096665,0.00013897,3]
[330717894,1719735048396,-500.0,0.00013897,3]
[330717895,1719735048404,-500.0,0.00013897,3]
[330717896,1719735048414,-503.34834239,0.00013897,3]
[330717897,1719735048424,-500.0,0.00013897,3]
[330717898,1719735048433,-504.21905811,0.00013897,3]
[330717899,1719735048442,-504.14632498,0.00013897,3]
[330717900,1719735048451,-500.0,0.00013897,3]
[330717901,1719735048459,-504.86891519,0.00013897,3]
[330717902,1719735048468,-500.0,0.00013897,3]
[330717903,1719735048478,-502.32374678,0.00013897,3]
[330717904,1719735048487,-500.0,0.00013897,3]
[330717905,1719735048496,-500.0,0.00013897,3]
[330717906,1719735048505,-503.99623499,0.00013897,3]
[330717907,1719735048514,-504.63543336,0.00013897,3]
[330717908,1719735048523,-524.42200084,0.00013897,3]
[330717909,1719735048532,-500.0,0.00013897,3]
[330717910,1719735048541,-500.0,0.00013897,3]
[330717911,1719735048550,-500.0,0.00013897,3]
[330717912,1719735048559,-534.62284258,0.00013897,3]
[330717913,1719735048568,-500.0,0.00013897,3]
[330717914,1719735048577,-500.0,0.00013897,3]
[330717915,1719735048586,-503.58073218,0.00013897,3]
[330717916,1719735048596,-500.0,0.00013897,3]